bitfinex-derivatives/quotes_BTCF0:USTF0_20240815
["timestamp","ask_amount","ask_price","bid_price","bid_amount"]
[1723726560653,0.08509144,58933.0,58932.0,0.084839]
[1723726561153,0.00025444,58933.0,58932.0,0.084839]
[1723726561457,1e-08,58933.0,58932.0,1.163557]
[1723726561853,1e-08,58933.0,58932.0,1.078718]
[1723726563059,1e-08,58933.0,58932.0,1.163557]
[1723726563248,0.084815,58949.0,58948.0,0.084816]
[1723726563446,0.084821,58945.0,58943.0,0.084822]
[1723726563663,0.084821,58945.0,58940.0,0.3608]
[1723726563958,0.084821,58945.0,58944.0,0.084822]
[1723726564149,0.084826,58941.0,58940.0,0.3608]
[1723726564345,0.084826,58941.0,58929.0,0.3608]
[1723726564346,0.084826,58941.0,58936.0,0.3608]
[1723726564653,0.084823,58944.0,58942.0,0.084823]
[1723726564848,0.084818,58947.0,58946.0,0.084815]
[1723726565044,0.39,58947.0,58935.0,0.23512744]
[1723726565256,0.08484,58931.0,58930.0,0.00088]
[1723726565447,0.084855,58921.0,58912.0,0.51120555]
[1723726565759,0.976165,58921.0,58912.0,0.15128555]
[1723726565971,1.206165,58921.0,58920.0,0.05007028]
[1723726566274,0.084866,58913.0,58912.0,0.15040555]
[1723726566459,0.445666,58913.0,58912.0,0.15040555]
[1723726566662,0.3608,58915.0,58914.0,0.084865]
[1723726567056,0.3608,58915.0,58912.0,0.15040555]
[1723726567653,0.445665,58915.0,58912.0,0.15040555]
[1723726567951,0.3608,58915.0,58912.0,0.15040555]
[1723726568152,0.445664,58915.0,58912.0,0.15040555]
[1723726568355,0.3608,58915.0,58913.0,0.084866]
[1723726568555,0.3608,58915.0,58914.0,0.084865]
[1723726568959,0.3608,58915.0,58912.0,0.15040555]
[1723726569756,0.3608,58915.0,58913.0,0.084866]
[1723726570654,0.084865,58914.0,58912.0,0.15040555]
[1723726570855,0.084866,58913.0,58912.0,0.15040555]
[1723726571745,0.445664,58915.0,58912.0,0.23527355]
[1723726571946,0.084866,58913.0,58912.0,0.15040555]
[1723726572756,0.530532,58913.0,58912.0,0.15040555]
[1723726573157,0.445666,58913.0,58912.0,0.15040555]
[1723726573571,0.3608,58913.0,58912.0,0.15040555]
[1723726573864,0.00735519,58921.0,58912.0,1.50531355]
[1723726574060,0.00735519,58921.0,58912.0,0.51120555]
[1723726574456,0.00735519,58921.0,58920.0,0.084856]
[1723726574659,0.00025444,58926.0,58912.0,1.78660555]
[1723726574874,0.00025444,58926.0,58925.0,0.169698]
[1723726575165,0.00025444,58926.0,58925.0,0.084849]
[1723726575464,0.3608,58942.0,58936.0,0.084832]
[1723726575663,0.00765315,58948.0,58931.0,0.3608]
[1723726575859,0.084816,58949.0,58931.0,0.3608]
[1723726576159,0.084816,58949.0,58940.0,0.084826]
[1723726576359,0.08483,58938.0,58931.0,0.3608]
[1723726576550,0.084839,58932.0,58931.0,0.3608]
[1723726576956,0.3608,58936.0,58935.0,0.084834]
[1723726577261,0.00025444,58937.0,58936.0,0.084833]
[1723726577761,0.00025444,58937.0,58936.0,1.354673]
[1723726579065,0.00025444,58937.0,58936.0,1.439506]
[1723726579257,0.3608,58945.0,58944.0,0.084822]
[1723726579460,0.3662,58964.0,58936.0,1.26984]
[1723726579461,0.084811,58952.0,58951.0,0.084811]
[1723726579864,0.084817,58947.0,58946.0,0.084819]
[1723726580167,0.084816,58948.0,58941.0,0.3608]
[1723726580367,0.084816,58948.0,58941.0,0.36105444]
[1723726580571,0.084817,58947.0,58941.0,0.36105444]
[1723726580755,0.084817,58947.0,58945.0,0.084819]
[1723726580962,0.36105444,58952.0,58941.0,0.36105444]
[1723726581290,0.084823,58944.0,58943.0,0.084823]
[1723726581462,0.084824,58942.0,58941.0,0.00025444]
[1723726581862,0.084824,58942.0,58941.0,0.08508044]
[1723726582263,0.084824,58942.0,58941.0,0.00025444]
[1723726584072,0.379648,58942.0,58941.0,0.00025444]
[1723726584869,0.169684,58930.0,58925.0,0.3147]
[1723726585076,0.169694,58926.0,58925.0,0.00092]
[1723726585268,0.169694,58926.0,58915.0,0.42994214]
[1723726585269,0.3608,58926.0,58917.0,0.08486]
[1723726585473,0.3608,58926.0,58925.0,0.084849]
[1723726585668,0.445647,58926.0,58925.0,0.084849]
[1723726586674,0.084843,58930.0,58929.0,0.084842]
[1723726586878,0.36105444,58931.0,58930.0,0.084842]
[1723726587375,0.44589444,58931.0,58930.0,0.084842]
[1723726587578,0.44589444,58931.0,58920.0,0.00025444]
[1723726587579,0.084855,58921.0,58920.0,0.08510944]
[1723726587879,0.62105444,58931.0,58920.0,0.08510944]
[1723726587880,0.084844,58929.0,58928.0,0.084844]
[1723726588374,0.36105444,58931.0,58920.0,0.00025444]
[1723726588375,0.36105444,58931.0,58930.0,0.084842]
[1723726588790,0.00025444,58931.0,58930.0,1.078764]
[1723726588978,0.00025444,58931.0,58930.0,1.387564]
[1723726589175,1e-08,58931.0,58930.0,1.387564]
[1723726589566,1e-08,58931.0,58930.0,1.472406]
[1723726591977,1e-08,58931.0,58930.0,1.55686477]
[1723726592173,1e-08,58931.0,58930.0,1.55686194]
[1723726592872,1e-08,58931.0,58930.0,1.38717794]
[1723726593186,1e-08,58931.0,58930.0,0.084842]
[1723726593376,1e-08,58931.0,58930.0,0.593922]
[1723726593581,0.3608,58940.0,58938.0,0.084829]
[1723726593884,0.084829,58939.0,58938.0,0.084829]
[1723726594271,0.084829,58939.0,58931.0,0.08484]
[1723726594272,0.084826,58942.0,58941.0,0.084825]
[1723726594976,0.08482,58945.0,58944.0,0.08482]
[1723726595784,0.08507144,58947.0,58940.0,0.3608]
[1723726595971,0.08507144,58947.0,58946.0,0.084819]
[1723726596173,0.00025444,58947.0,58946.0,0.084819]
[1723726596575,0.08507144,58947.0,58946.0,0.084819]
[1723726597373,0.084823,58944.0,58943.0,0.084821]
[1723726598585,0.08507244,58947.0,58946.0,0.084819]
[1723726598885,0.00025444,58947.0,58946.0,0.084819]
[1723726602391,0.08507144,58947.0,58946.0,0.084819]
[1723726603687,0.00025444,58947.0,58946.0,0.084819]
[1723726604188,0.00025444,58947.0,58946.0,0.169638]
[1723726604388,0.00025444,58947.0,58946.0,1.524177]
[1723726604574,1e-08,58947.0,58946.0,1.608996]
[1723726605185,1e-08,58947.0,58946.0,1.61683892]
[1723726606580,0.06865385,58960.0,58954.0,0.084807]
[1723726606782,0.10111329,58967.0,58959.0,0.3608]
[1723726606983,0.10111329,58967.0,58963.0,0.254382]
[1723726607184,0.10111329,58967.0,58966.0,0.16958]
[1723726607382,0.10111329,58967.0,58966.0,0.61517]
[1723726607690,0.13480813,58977.0,58973.0,0.08478]
[1723726608094,0.00025406,58975.0,58973.0,0.08478]
[1723726609887,0.084781,58972.0,58971.0,0.3608]
[1723726610889,0.084787,58968.0,58967.0,0.084788]
[1723726611309,0.084796,58962.0,58961.0,0.00025444]
[1723726611687,0.084796,58962.0,58961.0,0.08505144]
[1723726611886,0.2941,58971.0,58965.0,0.084791]
[1723726612097,0.084789,58967.0,58966.0,0.084789]
[1723726612700,0.3608,58972.0,58971.0,0.084783]
[1723726613085,0.3608,58972.0,58961.0,0.00025444]
[1723726613285,0.084787,58968.0,58967.0,0.084788]
[1723726613587,0.084791,58966.0,58965.0,0.084791]
[1723726614184,0.445591,58966.0,58965.0,0.084791]
[1723726614392,0.084795,58963.0,58962.0,0.084795]
[1723726615192,0.3608,58966.0,58965.0,0.084791]
[1723726615699,0.084796,58962.0,58961.0,0.00025444]
[1723726615907,0.084791,58965.0,58961.0,0.00025444]
[1723726616102,0.3608,58966.0,58965.0,0.084791]
[1723726616903,0.44559,58966.0,58965.0,0.084791]
[1723726617096,0.084796,58962.0,58961.0,0.00025444]
[1723726617291,0.169592,58962.0,58961.0,0.00025444]
[1723726617498,0.254421,58954.0,58953.0,0.06667208]
[1723726617694,0.254421,58954.0,58941.0,0.0834108]
[1723726617695,0.084824,58942.0,58941.0,0.0834108]
[1723726618008,0.214824,58942.0,58941.0,0.0834108]
[1723726618308,0.084824,58942.0,58941.0,0.0834108]
[1723726618496,0.3608,58945.0,58941.0,0.0834108]
[1723726618995,0.084824,58942.0,58941.0,0.0834108]
[1723726619197,0.169648,58942.0,58941.0,0.0834108]
[1723726619399,0.084824,58942.0,58941.0,0.0834108]
[1723726620198,1.359984,58942.0,58941.0,0.0834108]
[1723726620399,0.959984,58942.0,58941.0,0.0834108]
[1723726620597,1.271884,58942.0,58941.0,0.0834108]
[1723726620991,1.511884,58942.0,58941.0,0.0834108]
[1723726621198,0.08483,58938.0,58937.0,0.06680025]
[1723726621503,0.44563,58938.0,58937.0,0.06680025]
[1723726622108,0.084832,58937.0,58936.0,0.00025444]
[1723726623104,0.269664,58937.0,58936.0,0.00025444]
[1723726623297,0.084846,58927.0,58922.0,0.26704664]
[1723726623494,0.084852,58923.0,58913.0,0.14349268]
[1723726623701,0.3662,58920.0,58913.0,0.14349268]
[1723726623997,0.3608,58917.0,58913.0,0.22835868]
[1723726624201,0.08507266,58916.0,58914.0,0.084864]
[1723726624405,0.084865,58914.0,58909.0,0.00025444]
[1723726624609,0.00021066,58916.0,58913.0,0.084866]
[1723726624906,0.084864,58915.0,58913.0,0.084866]
[1723726625306,0.084865,58914.0,58909.0,0.00025444]
[1723726625500,0.08487,58910.0,58909.0,0.00025444]
[1723726626804,0.084875,58907.0,58906.0,1e-08]
[1723726626998,0.084875,58907.0,58893.0,0.25208497]
[1723726626999,0.084888,58898.0,58893.0,0.25208497]
[1723726627195,0.53069713,58898.0,58893.0,0.16718997]
[1723726627503,0.44580913,58898.0,58893.0,0.16718997]
[1723726627705,0.53069713,58898.0,58893.0,0.16718997]
[1723726628311,0.54069713,58898.0,58893.0,0.16718997]
[1723726628614,0.084894,58894.0,58893.0,0.16718997]
[1723726629403,0.094894,58894.0,58893.0,0.16718997]
[1723726630010,0.084894,58894.0,58893.0,0.16718997]
[1723726630211,0.094894,58894.0,58893.0,0.16718997]
[1723726630406,0.084894,58894.0,58893.0,0.16718997]
[1723726633819,0.284894,58894.0,58893.0,0.16718997]
[1723726634607,0.369788,58894.0,58893.0,0.16718997]
[1723726634802,0.284894,58894.0,58893.0,0.16718997]
[1723726638111,0.369788,58894.0,58893.0,0.16718997]
[1723726638515,0.284894,58894.0,58893.0,0.16718997]
[1723726638905,0.284894,58894.0,58893.0,0.25208497]
[1723726639104,0.2,58894.0,58893.0,0.25208497]
[1723726639410,0.00012113,58898.0,58897.0,0.084889]
[1723726639617,0.00792248,58907.0,58902.0,0.084882]
[1723726639820,0.02025468,58903.0,58902.0,0.445682]
[1723726640117,0.02025468,58903.0,58902.0,0.084882]
[1723726640709,0.02034421,58903.0,58902.0,0.084882]
[1723726641109,0.10522521,58903.0,58902.0,0.084882]
[1723726641304,0.02034421,58903.0,58902.0,0.084882]
[1723726641515,0.00034421,58903.0,58902.0,0.169764]
[1723726641719,0.389652,58923.0,58916.0,0.084862]
[1723726641720,0.084861,58917.0,58916.0,0.084862]
[1723726641914,0.3608,58925.0,58919.0,0.084856]
[1723726641915,0.084856,58920.0,58919.0,0.084856]
[1723726642114,0.00776299,58920.0,58919.0,0.084856]
[1723726642411,0.084848,58926.0,58925.0,0.084846]
[1723726642613,0.00779489,58931.0,58919.0,0.3608]
[1723726642820,0.084842,58930.0,58929.0,0.084841]
[1723726643119,0.01,58930.0,58929.0,0.084841]
[1723726643515,0.084856,58920.0,58919.0,0.00025468]
[1723726645129,0.445656,58920.0,58919.0,0.00025468]
[1723726645424,0.540512,58920.0,58919.0,0.00025468]
[1723726645626,0.540512,58920.0,58915.0,0.2964]
[1723726645627,0.084859,58918.0,58902.0,0.395382]
[1723726645926,0.084877,58906.0,58904.0,0.084879]
[1723726646326,0.084869,58911.0,58904.0,0.084879]
[1723726647123,0.084869,58911.0,58902.0,0.31075468]
[1723726647325,0.084881,58903.0,58902.0,0.31075468]
[1723726647726,0.09265711,58911.0,58902.0,0.31075468]
[1723726648025,0.084879,58905.0,58903.0,0.08488]
[1723726648217,0.084879,58904.0,58903.0,0.08488]
[1723726648717,0.084874,58908.0,58906.0,0.084876]
[1723726648918,0.084875,58907.0,58906.0,0.084876]
[1723726649625,0.36838827,58912.0,58902.0,0.39563568]
[1723726649836,0.084881,58903.0,58902.0,0.39563568]
[1723726650215,0.084881,58903.0,58902.0,0.31075468]
[1723726651231,0.530562,58903.0,58902.0,0.00025468]
[1723726651532,0.815443,58903.0,58902.0,4.402e-05]
[1723726651831,1.724763,58903.0,58902.0,4.402e-05]
[1723726652033,1.73259728,58903.0,58902.0,4.402e-05]
[1723726652817,1.33259728,58903.0,58902.0,4.402e-05]
[1723726653030,0.084902,58888.0,58887.0,0.05011112]
[1723726654022,0.445702,58888.0,58887.0,0.05011112]
[1723726654222,0.084902,58888.0,58887.0,0.05011112]
[1723726654419,0.445702,58888.0,58887.0,0.05011112]
[1723726654824,0.084902,58888.0,58887.0,0.05011112]
[1723726655623,0.445702,58888.0,58887.0,0.05011112]
[1723726655828,0.550604,58888.0,58887.0,0.05011112]
[1723726656524,0.635506,58888.0,58887.0,0.05011112]
[1723726656732,1.314946,58888.0,58887.0,0.05011112]
[1723726657131,1.714946,58888.0,58887.0,0.05011112]
[1723726657335,1.314946,58888.0,58887.0,0.05011112]
[1723726657635,0.16981,58886.0,58885.0,0.00017486]
[1723726657825,0.86061,58886.0,58885.0,0.00017486]
[1723726658320,1.994995,58886.0,58885.0,0.00017486]
[1723726658524,0.169818,58883.0,58882.0,0.00025468]
[1723726658727,0.084921,58875.0,58874.0,0.08387316]
[1723726658923,1.191921,58875.0,58874.0,0.08387316]
[1723726659137,1.361763,58875.0,58874.0,0.08387316]
[1723726659326,1.871323,58875.0,58874.0,0.08387316]
[1723726659524,2.79228869,58875.0,58874.0,0.08387316]
[1723726661344,0.00016569,58875.0,58874.0,0.52959516]
[1723726661523,0.00016569,58875.0,58869.0,0.00017034]
[1723726661524,0.254784,58870.0,58869.0,0.00017034]
[1723726661726,0.624784,58870.0,58869.0,0.00017034]
[1723726661926,0.254793,58868.0,58867.0,0.10065242]
[1723726662126,0.965593,58868.0,58867.0,0.05706648]
[1723726662328,0.169886,58860.0,58850.0,0.2919]
[1723726662644,1.1819705,58860.0,58850.0,0.2919]
[1723726662828,2.10010888,58860.0,58850.0,0.2919]
[1723726663133,0.084958,58849.0,58848.0,0.3528]
[1723726663338,0.084961,58847.0,58846.0,0.05030404]
[1723726664028,0.169922,58847.0,58846.0,0.05030404]
[1723726664525,0.179922,58847.0,58846.0,0.05030404]
[1723726664735,0.169922,58847.0,58846.0,0.05030404]
[1723726665328,0.179922,58847.0,58846.0,0.05030404]
[1723726665532,0.849722,58847.0,58846.0,0.05030404]
[1723726665737,0.179922,58847.0,58846.0,0.05030404]
[1723726665938,1.089722,58847.0,58846.0,0.05030404]
[1723726666536,1.004761,58847.0,58843.0,0.06707205]
[1723726666742,0.16998,58827.0,58826.0,0.10957224]
[1723726666944,0.169992,58823.0,58818.0,0.15179212]
[1723726667127,0.530792,58823.0,58818.0,0.15091212]
[1723726667337,1.355796,58823.0,58818.0,0.15091212]
[1723726667538,0.445796,58823.0,58818.0,0.15091212]
[1723726667847,1.35597101,58823.0,58818.0,0.15091212]
[1723726668228,0.085002,58819.0,58818.0,0.15091212]
[1723726668433,1.79726439,58819.0,58818.0,0.15091212]
[1723726668733,2.19726439,58819.0,58818.0,0.15091212]
[1723726669131,2.11226239,58819.0,58818.0,0.15091212]
[1723726669338,0.81222239,58819.0,58818.0,0.15091212]
[1723726670436,0.81222239,58819.0,58818.0,0.14291212]
[1723726670437,0.45142239,58819.0,58818.0,0.14291212]
[1723726670639,0.085008,58815.0,58814.0,0.16768014]
[1723726670854,0.170016,58815.0,58814.0,0.16768014]
[1723726671042,0.98525279,58815.0,58814.0,0.08160514]
[1723726671248,0.170026,58811.0,58790.0,0.3205]
[1723726671435,0.98224598,58811.0,58790.0,0.3205]
[1723726671639,1.85233998,58811.0,58794.0,0.085037]
[1723726671835,0.085044,58790.0,58787.0,0.36095381]
[1723726672033,0.08522938,58790.0,58787.0,0.36095381]
[1723726673032,0.36098538,58790.0,58788.0,0.085045]
[1723726673232,0.36098538,58790.0,58787.0,0.00015381]
[1723726673537,0.89727338,58790.0,58787.0,0.00015381]
[1723726673741,2.10120708,58790.0,58787.0,0.00015381]
[1723726674044,0.085047,58788.0,58787.0,0.00015381]
[1723726674231,0.720894,58788.0,58787.0,0.00015381]
[1723726674438,1.631214,58788.0,58787.0,0.00015381]
[1723726674830,1.716261,58788.0,58787.0,8.1e-07]
[1723726675039,1.631214,58788.0,58787.0,8.1e-07]
[1723726675239,1.88532282,58788.0,58787.0,8.1e-07]
[1723726675739,2.05532282,58788.0,58787.0,8.1e-07]
[1723726675933,0.085063,58777.0,58756.0,0.6607]
[1723726676133,0.085063,58777.0,58756.0,0.30078]
[1723726676134,0.445876,58768.0,58756.0,0.30078]
[1723726676334,0.445876,58768.0,58761.0,0.085085]
[1723726676535,0.445876,58768.0,58756.0,0.2999]
[1723726677032,0.44605149,58768.0,58756.0,0.2999]
[1723726677238,0.36097549,58768.0,58767.0,0.35233634]
[1723726677540,0.00025515,58778.0,58777.0,0.085062]
[1723726678249,0.36645515,58778.0,58775.0,0.445865]
[1723726678435,0.00015785,58777.0,58775.0,0.3608]
[1723726678745,0.3608,58784.0,58783.0,0.085054]
[1723726678942,0.3608,58784.0,58775.0,0.7608]
[1723726678943,0.3608,58784.0,58775.0,0.3608]
[1723726679149,0.085065,58776.0,58771.0,0.00025515]
[1723726679331,0.08507,58772.0,58771.0,0.00025515]
[1723726679732,0.08521437,58772.0,58771.0,0.00025515]
[1723726679940,0.17028437,58772.0,58771.0,0.00025515]
[1723726680331,0.08521437,58772.0,58771.0,0.00025515]
[1723726680535,0.08521437,58772.0,58771.0,0.08532615]
[1723726680965,0.08521437,58772.0,58771.0,0.00025515]
[1723726681835,0.00014437,58772.0,58771.0,0.00025515]
[1723726682040,0.00014437,58772.0,58771.0,0.59576615]
[1723726682348,0.00025515,58777.0,58776.0,0.085064]
[1723726682532,0.3608,58787.0,58776.0,0.445864]
[1723726682738,0.04,58787.0,58786.0,0.085049]
[1723726683145,0.514019,58807.0,58786.0,0.91032]
[1723726683347,0.514019,58807.0,58794.0,0.3608]
[1723726683348,0.08503,58800.0,58794.0,0.3608]
[1723726683642,0.085013,58811.0,58803.0,0.085025]
[1723726683840,0.3608,58816.0,58806.0,0.3608]
[1723726684046,0.085017,58809.0,58806.0,0.3608]
[1723726684261,0.085011,58813.0,58809.0,0.085015]
[1723726684439,0.3608,58816.0,58806.0,0.36176]
[1723726684643,0.7898,58827.0,58806.0,0.3608]
[1723726684856,0.00025515,58813.0,58806.0,0.3608]
[1723726685347,0.00025515,58813.0,58811.0,0.3608]
[1723726685544,0.00025515,58813.0,58812.0,0.085012]
[1723726685740,0.3608,58827.0,58812.0,0.91008]
[1723726685940,0.084981,58834.0,58823.0,0.3608]
[1723726686146,0.084995,58825.0,58823.0,0.3608]
[1723726686448,0.084995,58825.0,58823.0,0.445796]
[1723726686633,0.084981,58834.0,58824.0,0.51]
[1723726686840,0.445781,58834.0,58823.0,0.3608]
[1723726687243,0.00025515,58830.0,58823.0,0.3608]
[1723726687441,0.17022715,58830.0,58829.0,0.3608]
[1723726687758,0.17022715,58830.0,58823.0,0.3608]
[1723726687759,0.084995,58824.0,58823.0,0.3608]
[1723726688344,0.00025515,58830.0,58829.0,0.084987]
[1723726688545,0.00025515,58830.0,58829.0,0.3608]
[1723726688749,0.00025515,58830.0,58823.0,0.3608]
[1723726688750,0.084992,58826.0,58823.0,0.36168]
[1723726689051,0.00025515,58830.0,58825.0,0.084992]
[1723726689253,0.08524115,58830.0,58829.0,0.3608]
[1723726689445,0.00025515,58830.0,58829.0,0.445787]
[1723726689643,0.00025515,58830.0,58829.0,1.355747]
[1723726689842,0.084951,58854.0,58836.0,0.084977]
[1723726690159,0.084976,58837.0,58836.0,0.3608]
[1723726691249,0.00025492,58842.0,58836.0,0.445776]
[1723726691556,0.084972,58840.0,58837.0,0.084976]
[1723726691946,0.00025492,58842.0,58837.0,0.084976]
[1723726692246,0.084976,58838.0,58836.0,0.3608]
[1723726692448,0.084976,58838.0,58836.0,0.445777]
[1723726692748,0.084973,58839.0,58838.0,0.084974]
[1723726693048,0.084976,58837.0,58836.0,0.3608]
[1723726693455,0.00025492,58842.0,58836.0,0.3608]
[1723726693456,0.084971,58841.0,58836.0,0.3608]
[1723726693656,0.00025492,58842.0,58836.0,0.3608]
[1723726693883,0.084976,58837.0,58836.0,0.3608]
[1723726695350,0.00025492,58842.0,58836.0,0.3608]
[1723726695559,0.42522492,58842.0,58840.0,0.084971]
[1723726695946,0.08497,58841.0,58840.0,0.084971]
[1723726696147,0.37,58841.0,58840.0,0.084971]
[1723726696557,0.37,58841.0,58840.0,0.594811]
[1723726696757,0.00025492,58842.0,58841.0,0.08497]
[1723726696953,0.084955,58852.0,58842.0,0.084969]
[1723726697151,0.084955,58852.0,58851.0,0.084956]
[1723726697351,0.084954,58852.0,58847.0,0.3608]
[1723726697551,0.084954,58852.0,58851.0,0.084956]
[1723726698460,0.00025492,58857.0,58848.0,0.3608]
[1723726698760,0.00025492,58857.0,58856.0,0.084948]
[1723726699260,0.00025492,58857.0,58856.0,0.594668]
[1723726700151,0.084924,58874.0,58856.0,1.27052]
[1723726700351,0.084924,58874.0,58864.0,0.3608]
[1723726700555,0.084924,58874.0,58873.0,0.3608]
[1723726700852,0.084923,58874.0,58865.0,0.084935]
[1723726701057,0.084915,58879.0,58874.0,0.084921]
[1723726701257,0.00016824,58875.0,58869.0,0.3608]
[1723726701655,0.08508924,58875.0,58874.0,0.084922]
[1723726701855,0.00016824,58875.0,58874.0,0.084922]
[1723726702254,0.084935,58865.0,58864.0,0.36105492]
[1723726703356,0.084931,58869.0,58864.0,0.36105492]
[1723726703666,0.084927,58871.0,58864.0,0.36105492]
[1723726703864,0.00016824,58875.0,58864.0,0.36105492]
[1723726704164,0.084956,58851.0,58850.0,0.3608]
[1723726704458,0.084937,58864.0,58855.0,0.08495]
[1723726704657,0.084939,58863.0,58850.0,0.3608]
[1723726704867,0.094939,58863.0,58852.0,0.084954]
[1723726705052,0.084939,58863.0,58852.0,0.084954]
[1723726705252,0.084953,58853.0,58852.0,0.084954]
[1723726705459,0.084953,58853.0,58852.0,0.00025492]
[1723726706753,0.00025492,58863.0,58852.0,0.51001492]
[1723726706950,0.084944,58860.0,58857.0,0.084946]
[1723726707260,0.00025492,58863.0,58855.0,0.084949]
[1723726707464,0.01025492,58863.0,58852.0,0.08520892]
[1723726707659,0.084953,58853.0,58852.0,0.08520892]
[1723726707858,0.01025492,58863.0,58850.0,0.3608]
[1723726707859,0.084956,58851.0,58850.0,0.31006229]
[1723726708167,0.094956,58851.0,58850.0,0.31006229]
[1723726708351,0.179912,58851.0,58850.0,0.31006229]
[1723726708556,0.084969,58842.0,58839.0,0.3608]
[1723726708755,0.084969,58842.0,58834.0,0.08498]
[1723726708756,0.084976,58837.0,58834.0,0.08498]
[1723726709067,0.084961,58847.0,58835.0,0.3608]
[1723726709365,0.00025492,58841.0,58835.0,0.3608]
[1723726709576,0.00025492,58841.0,58840.0,0.084971]
[1723726710160,0.00025492,58841.0,58836.0,0.084976]
[1723726710463,0.00025492,58841.0,58835.0,0.3608]
[1723726710966,0.084977,58836.0,58835.0,0.3608]
[1723726712754,0.084979,58835.0,58830.0,0.00025492]
[1723726712950,0.084984,58831.0,58830.0,0.00025492]
[1723726713258,0.084976,58837.0,58832.0,0.084982]
[1723726713765,0.084975,58838.0,58830.0,0.00025492]
[1723726714067,0.084976,58837.0,58836.0,0.084976]
[1723726714866,0.36105492,58841.0,58830.0,0.08523992]
[1723726715065,0.084973,58839.0,58830.0,0.00025492]
[1723726715261,0.084984,58832.0,58831.0,0.084983]
[1723726715657,0.084979,58836.0,58835.0,0.084978]
[1723726717059,0.084983,58833.0,58832.0,0.084983]
[1723726717266,0.169966,58832.0,58831.0,0.013]
[1723726717571,0.464949,58832.0,58831.0,0.013]
[1723726718162,0.29,58838.0,58836.0,0.084977]
[1723726718353,0.33,58838.0,58837.0,0.084976]
[1723726719258,0.414974,58838.0,58837.0,0.084976]
[1723726719453,0.415974,58838.0,58837.0,0.098976]
[1723726719866,0.416974,58838.0,58837.0,0.111976]
[1723726720067,0.501948,58838.0,58837.0,0.027]
[1723726720267,0.501948,58838.0,58837.0,0.013]
[1723726720268,0.500948,58838.0,58837.0,0.013]
[1723726720567,0.501948,58838.0,58837.0,0.027]
[1723726720767,0.586922,58838.0,58837.0,0.027]
[1723726720971,0.586922,58838.0,58837.0,0.02554899]
[1723726721154,0.947722,58838.0,58837.0,0.02554899]
[1723726722059,0.946722,58838.0,58837.0,0.01154899]
[1723726722360,0.946722,58838.0,58821.0,0.0834483]
[1723726722361,0.169994,58822.0,58821.0,0.0834483]
[1723726722562,0.860794,58822.0,58821.0,0.0834483]
[1723726722764,1.510794,58822.0,58821.0,0.00013727]
[1723726723065,2.25096379,58822.0,58821.0,0.00013727]
[1723726723260,2.25963874,58822.0,58821.0,0.00013727]
[1723726723462,2.25963874,58822.0,58821.0,1e-08]
[1723726723766,1.62696679,58822.0,58821.0,0.01300001]
[1723726723965,1.11696679,58822.0,58821.0,0.01300001]
[1723726724562,0.86191468,58822.0,58821.0,0.01300001]
[1723726724966,0.86291468,58822.0,58821.0,0.01300001]
[1723726725162,0.94791168,58822.0,58821.0,1e-08]
[1723726725373,0.86291468,58822.0,58821.0,1e-08]
[1723726726164,0.86191468,58822.0,58821.0,1e-08]
[1723726726463,0.86291468,58822.0,58821.0,1e-08]
[1723726726770,0.77691768,58822.0,58821.0,1e-08]
[1723726726962,0.00212068,58822.0,58821.0,0.99499901]
[1723726727162,0.36197492,58827.0,58826.0,0.084992]
[1723726727163,0.00025492,58827.0,58826.0,0.084992]
[1723726727473,0.00025492,58827.0,58821.0,0.91000001]
[1723726727474,0.00025492,58827.0,58822.0,0.3105]
[1723726727767,0.084996,58823.0,58822.0,0.3105]
[1723726727968,0.00025492,58827.0,58826.0,0.084992]
[1723726728171,0.00025492,58827.0,58825.0,0.3608]
[1723726728474,0.084992,58826.0,58825.0,0.3608]
[1723726728866,0.179984,58826.0,58825.0,0.3608]
[1723726729469,0.179984,58826.0,58825.0,0.3618]
[1723726729979,0.264976,58826.0,58825.0,0.3618]
[1723726730174,0.264976,58826.0,58825.0,0.3608]
[1723726730471,0.78439002,58826.0,58825.0,0.001]
[1723726730674,1.04032996,58826.0,58825.0,0.001]
[1723726731262,0.254991,58822.0,58821.0,1e-08]
[1723726731466,0.955791,58822.0,58821.0,1e-08]
[1723726731776,1.21177031,58822.0,58821.0,1e-08]
[1723726732678,0.785797,58822.0,58821.0,1e-08]
[1723726732878,0.7018,58822.0,58821.0,0.08699901]
[1723726733174,0.7018,58822.0,58821.0,0.99699901]
[1723726733378,0.341,58822.0,58821.0,0.99799901]
[1723726733969,0.001,58822.0,58821.0,0.99799901]
[1723726734179,0.00025492,58827.0,58826.0,0.084992]
[1723726734374,0.00025492,58827.0,58826.0,0.445792]
[1723726734375,0.09524492,58827.0,58826.0,0.445792]
[1723726735883,0.3608,58836.0,58829.0,0.084986]
[1723726736080,0.084987,58830.0,58829.0,0.084986]
[1723726736669,0.08498,58835.0,58834.0,0.084978]
[1723726736874,0.084964,58845.0,58844.0,0.084965]
[1723726737075,0.084964,58845.0,58844.0,0.445765]
[1723726737680,0.084959,58849.0,58844.0,0.8706]
[1723726737888,0.00025492,58850.0,58849.0,0.084958]
[1723726738381,0.3608,58868.0,58858.0,0.084945]
[1723726738578,0.3608,58868.0,58858.0,0.445745]
[1723726738779,0.084939,58863.0,58858.0,0.445745]
[1723726738969,0.3608,58868.0,58858.0,0.445745]
[1723726739174,0.23565275,58859.0,58858.0,0.445745]
[1723726739369,0.15070875,58859.0,58858.0,0.3608]
[1723726739573,0.15070875,58859.0,58858.0,0.87048]
[1723726739775,0.15270875,58859.0,58858.0,0.955425]
[1723726740176,0.15770875,58859.0,58858.0,0.955425]
[1723726740383,0.15770875,58859.0,58858.0,1.357425]
[1723726740582,0.15770875,58859.0,58858.0,0.447745]
[1723726740770,0.169902,58854.0,58853.0,0.00025492]
[1723726741175,1.164613,58854.0,58853.0,0.00025492]
[1723726741371,0.254901,58843.0,58842.0,0.3608]
[1723726741595,0.169934,58843.0,58842.0,0.3608]
[1723726741888,0.084967,58843.0,58842.0,0.445769]
[1723726742084,0.3608,58849.0,58844.0,0.084965]